{"text_format":"1","workbook":"xlsx","n_sheets":3,"sheets":["Tablas","F-A-ATH-32","INSTRUCTIVO DE DILIGENCIAMIENTO"],"not_rendered":{"charts":0,"images":2,"macros":1,"external_links":0,"defined_names":43,"comments":0,"pivot_tables":0},"unopened":[],"bounds":{"document_bytes":16777216,"sheet_cells":100000,"rows_first":2000,"rows_last":500,"rows_between":2000,"halvings":0,"cell_chars":16384,"cell_head_chars":4096},"cells_cut":0,"cells_raw":0,"read":"whole","date_system":"1900"}

{"sheet":"Tablas","index":0,"n_rows":63,"n_cols":41,"rows_kept":63,"cut":false,"hidden":true,"merged":[]}
["SINO","VINCULACIÓN","Dependencia","DENOMINACIÓN","MINISTRO","VICEMINISTRO","SECRETARIO_GENERAL","SG_0035","DIRECTOR_TÉCNICO","DT_0100","SUBDIRECTOR_TÉCNICO","ST_0150","SUBDIRECTOR_ADMINISTRATIVO_Y_FINANCIERO","SAF_0150","JEFE_DE_OFICINA","JO_0137","JEFE_OFICINA_ASESORA_DE_PLANEACIÓN","JOAP_1045","JEFE_OFICINA_ASESORA_JURÍDICA","JOAJ_1045","ASESOR","ASE_1020","PROFESIONAL_ESPECIALIZADO","PE_2028","PROFESIONAL_UNIVERSITARIO","PU_2044","TÉCNICO_ADMINISTRATIVO","TA_3124","SECRETARIO_BILINGÜE","SB_4182","SECRETARIO_EJECUTIVO_DEL_DESPACHO","SED_4212","SED_4215","SECRETARIA_EJECUTIVA","SEA_4210","SECRETARIO_EJECUTIVO","SEO_4210","CONDUCTOR_MECÁNICO","CM_4103","AUXILIAR_ADMINISTRATIVO","AA_4044"]
["Seleccione una","Seleccione una","SELECCIONE SU DEPENDENCIA","SELECCIONE LA DENOMINACIÓN","M_0005","V_0020","SG_0035",23,"DT_0100",22,"ST_0150",21,"SAF_0150",21,"JO_0137",21,"JOAP_1045",16,"JOAJ_1045",16,"ASE_1020","08","PE_2028","13","PU_2044","05","TA_3124","09","SB_4182",26,"SED_4212",25,24,"SEA_4210","23","SEO_4210","17","CM_4103","13","AA_4044","09"]
["SI","Libre Nombramiento y Remoción","DESPACHO DE LA MINISTRA","MINISTRO",null,null,null,null,null,null,null,null,null,null,null,null,null,null,null,null,null,"09",null,"14",null,"06",null,"14",null,null,"SED_4215",null,null,null,null,null,"20",null,"15",null,"10"]
["NO","Periodo de Prueba","GRUPO DE COMUNICACIONES","VICEMINISTRO",null,null,null,null,null,null,null,null,null,null,null,null,null,null,null,null,null,"10",null,"15",null,"07",null,"16",null,null,null,null,null,null,null,null,"21",null,"19"]
[null,"Nombramiento provisional","OFICINA DE NEGOCIOS VERDES Y SOSTENIBLES","SECRETARIO_GENERAL",null,null,null,null,null,null,null,null,null,null,null,null,null,null,null,null,null,"11",null,"16",null,"08",null,"17",null,null,null,null,null,null,null,null,"22"]
[null,"Encargo","GRUPO DE ANÁLISIS ECONÓMICOS PARA LA SOSTENIBILIDAD","DIRECTOR_TÉCNICO",null,null,null,null,null,null,null,null,null,null,null,null,null,null,null,null,null,"12",null,"17",null,"11",null,"18"]
[null,"Encargo de funciones","GRUPO DE COMPETITIVIDAD Y PROMOCIÓN DE NEGOCIOS SOSTENIBLES","SUBDIRECTOR_TÉCNICO",null,null,null,null,null,null,null,null,null,null,null,null,null,null,null,null,null,"13",null,"19"]
[null,null,"OFICINA ASESORA DE PLANEACIÓN","SUBDIRECTOR_ADMINISTRATIVO_Y_FINANCIERO",null,null,null,null,null,null,null,null,null,null,null,null,null,null,null,null,null,"18",null,"21"]
[null,null,"GRUPO DE PROGRAMACIÓN Y GESTIÓN PRESUPUESTAL","JEFE_DE_OFICINA",null,null,null,null,null,null,null,null,null,null,null,null,null,null,null,null,null,null,null,"24"]
[null,null,"GRUPO DE GESTIÓN DE PROYECTOS","JEFE_OFICINA_ASESORA_DE_PLANEACIÓN"]
[null,null,"GRUPO DE POLÍTICAS, PLANEACIÓN Y SEGUIMIENTO","JEFE_OFICINA_ASESORA_JURÍDICA"]
[null,null,"GRUPO DE GESTIÓN Y DESEMPEÑO INSTITUCIONAL","ASESOR"]
[null,null,"GRUPO DE APOYO TÉCNICO, EVALUACIÓN Y SEGUIMIENTO A PROYECTOS DE INVERSIÓN DEL SECTOR AMBIENTAL","PROFESIONAL_ESPECIALIZADO"]
[null,null,"OFICINA ASESORA JURÍDICA","PROFESIONAL_UNIVERSITARIO"]
[null,null,"GRUPO DE CONCEPTOS Y NORMATIVIDAD EN BIODIVERSIDAD","TÉCNICO_ADMINISTRATIVO"]
[null,null,"GRUPO DE PROCESOS JUDICIALES","SECRETARIO_BILINGÜE"]
[null,null,"GRUPO DE CONCEPTOS Y NORMATIVIDAD EN POLÍTICAS SECTORIALES","SECRETARIO_EJECUTIVO_DEL_DESPACHO"]
[null,null,"OFICINA DE ASUNTOS INTERNACIONALES","SECRETARIA_EJECUTIVA"]
[null,null,"OFICINA DE TECNOLOGÍAS DE LA INFORMACIÓN Y LA COMUNICACIÓN","SECRETARIO_EJECUTIVO"]
[null,null,"OFICINA DE CONTROL INTERNO","CONDUCTOR_MECÁNICO"]
[null,null,"DESPACHO VICEMINISTRO DE POLÍTICAS Y NORMALIZACIÓN AMBIENTAL","AUXILIAR_ADMINISTRATIVO"]
[null,null,"DIRECCIÓN DE BOSQUES, BIODIVERSIDAD Y SERVICIOS ECOSISTÉMICOS"]
[null,null,"GRUPO DE GESTIÓN INTEGRAL BOSQUES Y RESERVAS FORESTALES NACIONALES"]
[null,null,"GRUPO DE RECURSOS GENÉTICOS"]
[null,null,"GRUPO DE GESTIÓN EN BIODIVERSIDAD"]
[null,null,"DIRECCIÓN DE ASUNTOS MARINOS, COSTEROS Y RECURSOS ACUÁTICOS"]
[null,null,"GRUPO DE GESTIÓN DE RIESGO, INFORMACIÓN Y PARTICIPACIÓN COMUNITARIA MARINO COSTERA"]
[null,null,"GRUPO DE ORDENAMIENTO AMBIENTAL DEL TERRITORIO Y GESTIÓN SOSTENIBLE DE LA BIODIVERSIDAD COSTERA Y MARINA"]
[null,null,"DIRECCIÓN DE GESTIÓN INTEGRAL DEL RECURSO HÍDRICO"]
[null,null,"GRUPO DE ADMINISTRACIÓN DEL RECURSO HÍDRICO"]
[null,null,"GRUPO DE FORTALECIMIENTO Y GOBERNANZA DEL AGUA"]
[null,null,"GRUPO DE PLANIFICACIÓN DE CUENCAS"]
[null,null,"DIRECCIÓN DE ASUNTOS AMBIENTALES SECTORIAL Y URBANA"]
[null,null,"GRUPO DE GESTIÓN AMBIENTAL URBANA"]
[null,null,"GRUPO DE GESTIÓN INTEGRAL DE RESIDUOS Y PASIVOS AMBIENTALES"]
[null,null,"GRUPO DE SOSTENIBILIDAD DE LOS SECTORES PRODUCTIVOS"]
[null,null,"GRUPO DE SUSTANCIAS QUÍMICAS, RESIDUOS PELIGROSOS Y UNIDAD TÉCNICA DE OZONO - UTO"]
[null,null,"GRUPO DE PRODUCCIÓN Y CONSUMO RESPONSABLE Y SECTOR AGROPECUARIO"]
[null,null,"GRUPO DE SECTOR HIDROCARBUROS, MINERÍA Y ENERGÉTICOS"]
[null,null,"DESPACHO VICEMINISTRO DE ORDENAMIENTO AMBIENTAL DEL TERRITORIO"]
[null,null,"DIRECCIÓN DE ORDENAMIENTO AMBIENTAL TERRITORIAL Y SISTEMA NACIONAL AMBIENTAL SINA"]
[null,null,"GRUPO DE ORDENAMIENTO AMBIENTAL"]
[null,null,"GRUPO SINA"]
[null,null,"SUBDIRECCIÓN DE EDUCACIÓN Y PARTICIPACIÓN"]
[null,null,"GRUPO DE DIVULGACIÓN DE CONOCIMIENTO Y CULTURA AMBIENTAL"]
[null,null,"GRUPO DE EDUCACIÓN"]
[null,null,"GRUPO DE PARTICIPACIÓN"]
[null,null,"DIRECCIÓN DE CAMBIO CLIMÁTICO Y GESTIÓN DEL RIESGO"]
[null,null,"GRUPO DE ADAPTACIÓN AL CAMBIO CLIMÁTICO"]
[null,null,"GRUPO DE MITIGACIÓN DEL CAMBIO CLIMÁTICO"]
[null,null,"GRUPO DE GESTIÓN INTEGRAL DEL RIESGO"]
[null,null,"SECRETARÍA GENERAL"]
[null,null,"GRUPO DE CONTROL INTERNO DISCIPLINARIO"]
[null,null,"GRUPO DE TALENTO HUMANO"]
[null,null,"GRUPO DE UNIDAD COORDINADORA PARA EL GOBIERNO ABIERTO Y SERVICIO A LA CIUDADANIA"]
[null,null,"GRUPO DE CONTRATOS"]
[null,null,"SUBDIRECCIÓN ADMINISTRATIVA Y FINANCIERA"]
[null,null,"GRUPO DE SERVICIOS ADMINISTRATIVOS"]
[null,null,"GRUPO DE GESTIÓN DOCUMENTAL"]
[null,null,"GRUPO DE PRESUPUESTO"]
[null,null,"GRUPO DE TESORERÍA"]
[null,null,"GRUPO CENTRAL DE CUENTAS Y CONTABILIDAD"]
[null,null,"GRUPO DE COMISIONES Y APOYO LOGÍSTICO"]

{"sheet":"F-A-ATH-32","index":1,"n_rows":58,"n_cols":11,"rows_kept":58,"cut":false,"hidden":false,"merged":[[0,0,1,0],[0,1,0,8],[1,1,1,8],[10,0,10,1],[14,3,14,5],[14,6,14,10],[11,0,12,10],[10,2,10,10],[3,0,3,3],[0,9,1,10],[2,9,2,10],[2,1,2,8],[5,2,5,10],[6,2,6,10],[7,2,7,10],[9,9,9,10],[17,3,17,5],[57,0,57,3],[57,5,57,10],[15,6,16,10],[19,5,19,9],[17,6,17,10],[17,1,17,2],[15,0,16,0],[15,1,16,2],[15,3,16,5],[19,0,20,1],[54,5,54,10],[49,0,49,1],[55,0,55,3],[55,5,55,10],[39,0,39,1],[40,0,40,1],[41,0,41,1],[47,0,47,3],[54,0,54,3],[48,0,48,3],[52,0,52,10],[56,0,56,3],[56,5,56,10],[21,0,21,1],[22,0,22,1],[23,0,23,1],[25,0,25,1],[26,0,26,1],[42,0,42,1],[43,0,43,1],[46,0,46,1],[33,0,33,1],[34,0,34,1],[35,0,35,1],[36,0,36,1],[37,0,37,1],[38,0,38,1],[4,0,4,10],[8,0,8,10],[13,0,13,10],[18,0,18,10],[50,0,50,10],[19,4,20,4],[9,2,9,4],[30,0,30,1],[31,0,31,1],[32,0,32,1],[9,0,9,1],[14,1,14,2],[49,2,49,10],[19,10,20,10],[9,5,9,6],[9,7,9,8]]}
["MINISTERIO DE AMBIENTE Y DESARROLLO SOSTENIBLE ","FORMATO DE ANALISIS CUMPLIMIENTO DE REQUISITOS PARA NOMBRAMIENTO"]
[null,"Proceso: Administración del Talento Humano"]
["Versión: 6"," Vigencia: 10/06/2025",null,null,null,null,null,null,null,"Código: F-A-ATH-32"]
[]
["1. INFORMACIÓN GENERAL DEL ASPIRANTE"]
["1.1 NOMBRES Y APELLIDOS DEL ASPIRANTE:"]
["1.2 CÉDULA DE CIUDADANÍA:"]
["1.3 TARJETA PROFESIONAL No."]
["2. INFORMACIÓN GENERAL DEL EMPLEO AL QUE ASPIRA"]
["2.1 DENOMINACIÓN:",null,"SELECCIONE LA DENOMINACIÓN",null,null,"2.2 CÓDIGO-GRADO:"]
["2.3. DEPENDENCIA:",null,"SELECCIONE SU DEPENDENCIA"]
["2.4  PROPÓSITO PRINCIPAL DEL EMPLEO:"]
[]
["3.  REQUISITOS MÍNIMOS"]
[null,"DEL MANUAL DE FUNCIONES  Y COMPETENCIAS",null," APORTADOS POR EL ASPIRANTE",null,null,"OBSERVACIONES "]
["3.1.  ESTUDIOS"]
[]
["3.2. EXPERIENCIA"]
["3.3 REGISTRO EXPERIENCIA LABORAL"]
["ENTIDAD",null,"DESDE","HASTA","DÍAS TOTALES EXPERIENCIA","TIEMPO DE SERVICIO",null,null,null,null,"RELACIONADA"]
[null,null,"dd/mm/aaaa","dd/mm/aaaa",null,"AÑOS TOTAL","MESES TOTAL","DÍAS TOTAL","DÍAS EXPERIENCIA RELACIONADA","DÍAS EXPERIENCIA VALIDADOS"]
[null,null,null,null,{"$f":"+DAYS360(C22,D22)","v":0},{"$f":"INT(DAYS360(C22,D22)/360)","v":0},{"$f":"INT(((DAYS360(C22,D22)/360)-F22)*12)","v":0},{"$f":"((((DAYS360(C22,D22)/360)-F22)*12)-G22)*30","v":0},{"$f":"IF(AND(K22=\"SI\",K23=\"SI\",C22>C23,D22<D23),0,IF(K22=\"SI\",DAYS360(C22,D22),0))","v":0},null,"Seleccione una"]
[null,null,null,null,{"$f":"+DAYS360(C23,D23)","v":0},{"$f":"INT(DAYS360(C23,D23)/360)","v":0},{"$f":"INT(((DAYS360(C23,D23)/360)-F23)*12)","v":0},{"$f":"((((DAYS360(C23,D23)/360)-F23)*12)-G23)*30","v":0},{"$f":"IF(AND(K23=\"SI\",K24=\"SI\",C23>C24,D23<D24),0,IF(AND(K22=\"SI\",K23=\"SI\",D23>C22,D23<D22),DAYS360(C23,C22,TRUE),IF(AND(K22=\"SI\",K23=\"SI\",D23>C22,D23>D22),DAYS360(C23,D23,TRUE),IF(AND(K22<>\"SI\",K23=\"SI\"),DAYS360(C23,D23,TRUE),IF(AND(D23<C22,K23=\"SI\"),DAYS360(C23,D23,TRUE),IF(AND(K22<>\"SI\",K23=\"SI\"),DAYS360(C23,D23),0))))))","v":0},null,"Seleccione una"]
[null,null,null,null,{"$f":"+DAYS360(C24,D24)","v":0},{"$f":"INT(DAYS360(C24,D24)/360)","v":0},{"$f":"INT(((DAYS360(C24,D24)/360)-F24)*12)","v":0},{"$f":"((((DAYS360(C24,D24)/360)-F24)*12)-G24)*30","v":0},{"$f":"IF(AND(K24=\"SI\",K25=\"SI\",C24>C25,D24<D25),0,IF(AND(K23=\"SI\",K24=\"SI\",D24>C23,D24<D23),DAYS360(C24,C23,TRUE),IF(AND(K23=\"SI\",K24=\"SI\",D24>C23,D24>D23),DAYS360(C24,D24,TRUE),IF(AND(K23<>\"SI\",K24=\"SI\"),DAYS360(C24,D24,TRUE),IF(AND(D24<C23,K24=\"SI\"),DAYS360(C24,D24,TRUE),IF(AND(K23<>\"SI\",K24=\"SI\"),DAYS360(C24,D24),0))))))","v":0},null,"Seleccione una"]
[null,null,null,null,0,0,0,0,{"$f":"IF(AND(K25=\"SI\",K26=\"SI\",C25>C26,D25<D26),0,IF(AND(K24=\"SI\",K25=\"SI\",D25>C24,D25<D24),DAYS360(C25,C24,TRUE),IF(AND(K24=\"SI\",K25=\"SI\",D25>C24,D25>D24),DAYS360(C25,D25,TRUE),IF(AND(K24<>\"SI\",K25=\"SI\"),DAYS360(C25,D25,TRUE),IF(AND(D25<C24,K25=\"SI\"),DAYS360(C25,D25,TRUE),IF(AND(K24<>\"SI\",K25=\"SI\"),DAYS360(C25,D25),0))))))","v":0},null,"Seleccione una"]
[null,null,null,null,0,0,0,0,{"$f":"IF(AND(K26=\"SI\",K27=\"SI\",C26>C27,D26<D27),0,IF(AND(K25=\"SI\",K26=\"SI\",D26>C25,D26<D25),DAYS360(C26,C25,TRUE),IF(AND(K25=\"SI\",K26=\"SI\",D26>C25,D26>D25),DAYS360(C26,D26,TRUE),IF(AND(K25<>\"SI\",K26=\"SI\"),DAYS360(C26,D26,TRUE),IF(AND(D26<C25,K26=\"SI\"),DAYS360(C26,D26,TRUE),IF(AND(K25<>\"SI\",K26=\"SI\"),DAYS360(C26,D26),0))))))","v":0},null,"Seleccione una"]
[null,null,null,null,0,0,0,0,{"$f":"IF(AND(K27=\"SI\",K28=\"SI\",C27>C28,D27<D28),0,IF(AND(K26=\"SI\",K27=\"SI\",D27>C26,D27<D26),DAYS360(C27,C26,TRUE),IF(AND(K26=\"SI\",K27=\"SI\",D27>C26,D27>D26),DAYS360(C27,D27,TRUE),IF(AND(K26<>\"SI\",K27=\"SI\"),DAYS360(C27,D27,TRUE),IF(AND(D27<C26,K27=\"SI\"),DAYS360(C27,D27,TRUE),IF(AND(K26<>\"SI\",K27=\"SI\"),DAYS360(C27,D27),0))))))","v":0},null,"Seleccione una"]
[null,null,null,null,0,0,0,0,{"$f":"IF(AND(K28=\"SI\",K29=\"SI\",C28>C29,D28<D29),0,IF(AND(K27=\"SI\",K28=\"SI\",D28>C27,D28<D27),DAYS360(C28,C27,TRUE),IF(AND(K27=\"SI\",K28=\"SI\",D28>C27,D28>D27),DAYS360(C28,D28,TRUE),IF(AND(K27<>\"SI\",K28=\"SI\"),DAYS360(C28,D28,TRUE),IF(AND(D28<C27,K28=\"SI\"),DAYS360(C28,D28,TRUE),IF(AND(K27<>\"SI\",K28=\"SI\"),DAYS360(C28,D28),0))))))","v":0},null,"Seleccione una"]
[null,null,null,null,0,0,0,0,0,null,"Seleccione una"]
[null,null,null,null,0,0,0,0,0,null,"Seleccione una"]
[null,null,null,null,0,0,0,0,0,null,"Seleccione una"]
[null,null,null,null,0,0,0,0,0,null,"Seleccione una"]
[null,null,null,null,0,0,0,0,0,null,"Seleccione una"]
[null,null,null,null,0,0,0,0,0,null,"Seleccione una"]
[null,null,null,null,0,0,0,0,0,null,"Seleccione una"]
[null,null,null,null,0,0,0,0,0,null,"Seleccione una"]
[null,null,null,null,0,0,0,0,0,null,"Seleccione una"]
[null,null,null,null,0,0,0,0,0,null,"Seleccione una"]
[null,null,null,null,0,0,0,0,0,null,"Seleccione una"]
[null,null,null,null,0,0,0,0,0,null,"Seleccione una"]
[null,null,null,null,0,0,0,0,0,null,"Seleccione una"]
[null,null,null,null,0,0,0,0,0,null,"Seleccione una"]
[null,null,null,null,0,0,0,0,0,null,"Seleccione una"]
[null,null,null,null,0,0,0,0,0,null,"Seleccione una"]
[null,null,null,null,0,0,0,0,0,null,"Seleccione una"]
[null,null,null,null,0,0,0,0,0,null,"Seleccione una"]
[null,null,null,null,0,0,0,0,0,null,"Seleccione una"]
["TOTAL EXPERIENCIA LABORAL",null,null,null,{"$f":"SUM(E22:E47)","v":0},{"$f":"+INT(E48/360)","v":0},"AÑOS",{"$f":"INT(((E48/360)-INT(E48/360))*12)","v":0},"MESES",{"$f":"((((E48/360)-INT(E48/360))*12)-INT((((E48/360)-INT(E48/360))*12)))*30","v":0},"DÍAS"]
["EXPERIENCIA PROFESIONAL RELACIONADA",null,null,null,null,null,null,{"$f":"+INT((SUMIFS(J22:J47,K22:K47,\"SI\"))/30)","v":0},"MESES",{"$f":"(((SUMIFS(J22:J47,K22:K47,\"SI\"))/30)-H49)*30","v":0},"DÍAS"]
["3.4. EQUIVALENCIA O ALTERNATIVA:"]
["4. TIPO DE VINCULACIÓN O PROVISIÓN"]
[]
["5.  CONCLUSIÓN DEL ANÁLISIS"]
["CUMPLE CON LOS REQUISITOS MÍNIMOS DEL CARGO:"]
["Proyectado por: (nombre)",null,null,null,null,"Firma"]
["Revisado por: (nombre)",null,null,null,null,"Firma"]
["Revisado por: (nombre)",null,null,null,null,"Firma"]
["Aprobado por: (nombre)",null,null,null,null,"Firma Coordinador (a) Grupo de Talento Humano"]

{"sheet":"INSTRUCTIVO DE DILIGENCIAMIENTO","index":2,"n_rows":28,"n_cols":4,"rows_kept":28,"cut":false,"hidden":false,"merged":[[1,1,1,2],[2,1,2,2],[3,1,3,2],[1,0,3,0],[4,0,7,0],[4,1,4,2],[5,1,5,2],[6,1,6,2],[7,1,7,2],[27,1,27,2],[26,1,26,2],[25,1,25,2],[24,1,24,2],[23,1,23,2],[19,1,19,2],[20,1,20,2],[21,1,21,2],[22,1,22,2],[8,0,22,0],[8,1,8,2],[9,1,9,2],[10,1,10,2],[11,1,11,2],[14,1,18,1]]}
["SECCIÓN","NOMBRE DE CAMPO",null,"INDICACIÓN DILIGENCIAMIENTO"]
["1. INFORMACIÓN GENERAL DEL ASPIRANTE","1.1 NOMBRES Y APELLIDOS DEL ASPIRANTE:",null,"Debe digitar el nombre completo del aspirante, tal como aparece en su documento de identificación"]
[null,"1.2 CÉDULA DE CIUDADANÍA:",null,"Debe digitar el número de identidad del aspirante, tal como aparece en su documento de identificación"]
[null,"1.3 TARJETA PROFESIONAL No.",null,"Debe digitar el número completo de la tarjeta profesional, tal como aparece en dicho documento"]
["2. INFORMACIÓN GENERAL DEL EMPLEO AL QUE ASPIRA","2.1 DENOMINACIÓN:",null,"Debe seleccionar una de las opciones disponibles en el listado desplegable destinado para tal fin, en caso de no encontrar la opción deseada, deberá comunicarse con el Grupo de Talento Humano"]
[null,"2.2 CÓDIGO-GRADO:",null,"Debe seleccionar una de las opciones disponibles en el listado desplegable que se habilitará en cada una de las siguientes dos celdas del formato. \nPara lo anterior debe tenerse en cuenta que las letras y guion que aparecen antes de los números del código del empleo tienen como único objetivo el funcionamiento de este archivo, por tanto solo debe tenerse en cuenta la codificación numérica del empleo al momento de su selección.\nEn caso de no encontrar la opción deseada, deberá comunicarse con el Grupo de Talento Humano"]
[null,"2.3. DEPENDENCIA:",null,"Debe seleccionar una de las opciones disponibles en el listado desplegable destinado para tal fin, en caso de no encontrar la opción deseada, deberá comunicarse con el Grupo de Talento Humano"]
[null,"2.4  PROPÓSITO PRINCIPAL DEL EMPLEO:",null,"Debe diligenciar el propósito principal del empleo tal como se encuentra registrado en el Manual de Funciones vigente"]
["3.  REQUISITOS MÍNIMOS","3.1.  ESTUDIOS",null,"En la columna \"DEL MANUAL DE FUNCIONES  Y COMPETENCIAS\" deberá diligenciar los requisitos mínimos de estudios establecidos en el Manual de Funciones y Competencias vigente; en la columna \"APORTADOS POR EL ASPIRANTE\" deberá diligenciar la información correspondiente aportada por el aspirante, y en la columna \"OBSERVACIONES\", podrá diligenciar aquella información que considere importante como resultado de la comparación de los requisitos mínimos requeridos versus la información aportada"]
[null,"3.2. EXPERIENCIA",null,"En la columna \"DEL MANUAL DE FUNCIONES  Y COMPETENCIAS\" deberá diligenciar los requisitos mínimos de experiencia establecidos en el Manual de Funciones y Competencias vigente; en la columna \"APORTADOS POR EL ASPIRANTE\" deberá diligenciar la información correspondiente aportada por el aspirante, y en la columna \"OBSERVACIONES\", podrá diligenciar aquella información que considere importante como resultado de la comparación de los requisitos mínimos requeridos versus la información aportada"]
[null,"3.3 REGISTRO EXPERIENCIA LABORAL",null,"En esta tabla se debe diligenciar la información asociada a la experiencia laboral SIEMPRE de la más reciente a la más antigua"]
[null,"ENTIDAD",null,"Debe registrar el nombre completo de la entidad en donde laboró"]
[null,"DESDE","dd/mm/aaaa","Debe diligenciar la fecha inicial de la experiencia laboral con formato dd/mm/aaaa, ejemplo 02/03/2018.\nEn los casos que la fecha de inicio registrada se encuentre entre la fecha de inicio y fecha final de la experiencia registrada en la fila inmediatamente inferior, la celda se resaltará de color naranja."]
[null,"HASTA","dd/mm/aaaa","Debe diligenciar la fecha final de la experiencia laboral con formato dd/mm/aaaa, ejemplo 09/03/2019\nEn los casos que la fecha de finalización registrada se encuentre entre la fecha de inicio y fecha final de la experiencia registrada en la fila inmediatamente superior, la celda se resaltará de color amarillo."]
[null,"TIEMPO DE SERVICIO","AÑOS TOTAL","La información de este campo es calculada automáticamente por el Excel y por tanto no puede ser modificada"]
[null,null,"MESES TOTAL","La información de este campo es calculada automáticamente por el Excel y por tanto no puede ser modificada"]
[null,null,"DÍAS TOTAL","La información de este campo es calculada automáticamente por el Excel y por tanto no puede ser modificada"]
[null,null,"DÍAS EXPERIENCIA RELACIONADA","La información de este campo es calculada automáticamente por el Excel calculando si está traslapada con las experiencias reportadas en las filas inmediatamente superior e inferior de la que se encuentra validando y evalúa si está catalogada como experiencia relacionada o no.\nCon base en lo anterior, esta información no podrá ser modificada en este Excel"]
[null,null,"DÍAS EXPERIENCIA VALIDADOS","DESPUÉS de catalogar la experiencia que se está validando como Relacionada o no, debe diligenciar la cantidad de días correspondientes a la experiencia; este número podrá ser igual al mostrado en el campo \"DÍAS RELACIONADA\" o, podrá ser diferente en caso que se presenten traslapes con experiencias diferentes a las registradas en la fila inmediatamente superior e inferior de la experiencia analizada, por tanto se requiere el registro manual de esta información."]
[null,"RELACIONADA",null,"Debe catalogar la experiencia como experiencia relacionada o no, seleccionando la opción correspondiente en la lista desplegable destinada para tal fin"]
[null,"TOTAL EXPERIENCIA LABORAL",null,"El sistema calcula automáticamente la totalidad de días registrados como experiencia laboral, sin considerar si se encuentra traslapada o su categorización como experiencia relacionada o no relacionada y, la muestra indicando la totalidad de años, meses y días de experiencia laboral.\nCon base en lo anterior, la información de estos campos se deberá leer como XX años, XX meses y XX días de experiencia laboral, a manera de ejemplo: \"2 AÑOS 13 MESES Y 14 DÍAS\""]
[null,"EXPERIENCIA PROFESIONAL RELACIONADA",null,"El sistema calcula automáticamente la totalidad de días registrados como experiencia laboral categorizada como experiencia relacionada usando como base la información registrada en la columna \"DÍAS VALIDADOS\", y la muestra indicando la totalidad de meses y días de experiencia laboral relacionada.\nCon base en lo anterior, la información de estos campos se deberá leer como XX meses y XX días de experiencia laboral relacionada, a manera de ejemplo: \"37 MESES Y 14 DÍAS\""]
[null,"3.4. EQUIVALENCIA O ALTERNATIVA:",null,"Debe registrar la información correspondiente de acuerdo a lo establecido en el Manual de Funciones y Competencias vigente"]
["4. TIPO DE VINCULACIÓN O PROVISIÓN",null,null,"Debe seleccionar una de las opciones disponibles en el listado desplegable destinado para tal fin, en caso de no encontrar la opción deseada, deberá comunicarse con el Grupo de Talento Humano"]
["5.  CONCLUSIÓN DEL ANÁLISIS",null,null,"Debe seleccionar una de las opciones disponibles en el listado desplegable destinado para tal fin, indicando de esta forma si el aspirante cumple o no con los requisitos mínimos del cargo"]
["Proyectado por: (nombre)",null,null,"Debe digitar el nombre completo del colaborador que realizó el análisis, tal como aparece en su documento de identificación"]
["Revisado por: (nombre)",null,null,"Debe digitar el nombre completo del colaborador que realizó la revisión del análisis, tal como aparece en su documento de identificación"]
["Aprobado por: (nombre)",null,null,"Debe digitar el nombre completo del Coordinador(a) del Grupo de Talento Humano como aprobador del análisis realizado"]